[Event "*** Titled Tuesday 3|2 Blitz"]
[Site "Chess.com"]
[Date "2016.05.03"]
[Round "6"]
[White "Stameny"]
[Black "kikydu96"]
[Result "1-0"]
[WhiteElo "2406"]
[BlackElo "2283"]
[TimeControl "180+2"]
[EndTime "12:15:54 PDT"]
[Termination "Stameny won by resignation"]

1. d4 {[%clk 0:03:01.9]} 1... d5 {[%clk 0:02:55.8]} 2. Bg5 {[%clk 0:03:01.2]}
2... c5 {[%clk 0:02:50.2]} 3. dxc5 {[%clk 0:03:01]} 3... Qa5+ {[%clk 0:02:49.9]}
4. Nc3 {[%clk 0:03:01.3]} 4... e6 {[%clk 0:02:49]} 5. e4 {[%clk 0:02:47.8]} 5...
h6 {[%clk 0:02:49.7]} 6. Bh4 {[%clk 0:02:14.6]} 6... Be7 {[%clk 0:02:29.4]} 7.
Bxe7 {[%clk 0:02:12.3]} 7... Nxe7 {[%clk 0:02:31.3]} 8. exd5 {[%clk 0:02:13.8]}
8... Nxd5 {[%clk 0:02:31.7]} 9. Ne2 {[%clk 0:02:14.3]} 9... O-O {[%clk
0:02:29.4]} 10. Qd2 {[%clk 0:02:10.7]} 10... Rd8 {[%clk 0:02:27.6]} 11. O-O-O
{[%clk 0:02:06.8]} 11... Qxc5 {[%clk 0:02:10.8]} 12. Qd4 {[%clk 0:01:53.6]}
12... Qxd4 {[%clk 0:02:06.1]} 13. Rxd4 {[%clk 0:01:51]} 13... Nc6 {[%clk
0:02:06.3]} 14. Rd2 {[%clk 0:01:51.5]} 14... Nxc3 {[%clk 0:01:56.5]} 15. Rxd8+
{[%clk 0:01:51.9]} 15... Nxd8 {[%clk 0:01:58.4]} 16. Nxc3 {[%clk 0:01:53.3]}
16... Bd7 {[%clk 0:01:57.8]} 17. f3 {[%clk 0:01:23]} 17... Kf8 {[%clk
0:01:49.3]} 18. Bd3 {[%clk 0:01:15.4]} 18... Ke7 {[%clk 0:01:49.8]} 19. Re1
{[%clk 0:01:16]} 19... Bc6 {[%clk 0:01:50.2]} 20. Be4 {[%clk 0:01:17.4]} 20...
Bxe4 {[%clk 0:01:48.9]} 21. Rxe4 {[%clk 0:01:19]} 21... Nc6 {[%clk 0:01:48.9]}
22. b4 {[%clk 0:01:14.9]} 22... Rc8 {[%clk 0:01:44.3]} 23. Kb2 {[%clk
0:01:14.3]} 23... a6 {[%clk 0:01:28]} 24. a3 {[%clk 0:01:10.8]} 24... Kd6 {[%clk
0:01:23.6]} 25. Na4 {[%clk 0:00:52.8]} 25... e5 {[%clk 0:01:16.8]} 26. Nb6
{[%clk 0:00:46.8]} 26... Rc7 {[%clk 0:01:16.4]} 27. c4 {[%clk 0:00:46.2]} 27...
Nd4 {[%clk 0:01:13]} 28. f4 {[%clk 0:00:42.1]} 28... f6 {[%clk 0:00:54.6]} 29.
g4 {[%clk 0:00:34.7]} 29... Nf3 {[%clk 0:00:45.6]} 30. c5+ {[%clk 0:00:22.7]}
30... Ke6 {[%clk 0:00:45]} 31. f5+ {[%clk 0:00:24.2]} 31... Kf7 {[%clk
0:00:43.8]} 32. h3 {[%clk 0:00:23.1]} 32... Nd4 {[%clk 0:00:35.3]} 33. Kc3
{[%clk 0:00:22.8]} 33... h5 {[%clk 0:00:32.9]} 34. Kc4 {[%clk 0:00:20.8]} 34...
hxg4 {[%clk 0:00:30.5]} 35. hxg4 {[%clk 0:00:22.2]} 35... Nb5 {[%clk 0:00:24.1]}
36. Re3 {[%clk 0:00:21.2]} 36... g6 {[%clk 0:00:23]} 37. a4 {[%clk 0:00:17.4]}
37... Nd4 {[%clk 0:00:22.7]} 38. fxg6+ {[%clk 0:00:17.3]} 38... Kxg6 {[%clk
0:00:24.5]} 39. Nd5 {[%clk 0:00:14.3]} 39... Rh7 {[%clk 0:00:18.6]} 40. b5
{[%clk 0:00:11.6]} 40... axb5+ {[%clk 0:00:18.2]} 41. axb5 {[%clk 0:00:13.1]}
41... Kg5 {[%clk 0:00:19.8]} 42. Re4 {[%clk 0:00:09.9]} 42... Nf3 {[%clk
0:00:20.4]} 43. Re2 {[%clk 0:00:08]} 43... Kxg4 {[%clk 0:00:20.5]} 44. Nxf6+
{[%clk 0:00:08.7]} 1-0

[Event "*** Titled Tuesday 3|2 Blitz"]
[Site "Chess.com"]
[Date "2016.05.03"]
[Round "6"]
[White "JusticeBot"]
[Black "psv98"]
[Result "0-1"]
[WhiteElo "2536"]
[BlackElo "2487"]
[TimeControl "180+2"]
[EndTime "12:16:03 PDT"]
[Termination "psv98 won on time"]

1. e4 {[%clk 0:03:00.9]} 1... e6 {[%clk 0:02:59]} 2. d4 {[%clk 0:03:00.5]} 2...
d5 {[%clk 0:03:00.1]} 3. Nd2 {[%clk 0:03:02.1]} 3... a6 {[%clk 0:02:59.9]} 4. c3
{[%clk 0:02:49.4]} 4... c5 {[%clk 0:02:56.6]} 5. exd5 {[%clk 0:02:39.8]} 5...
exd5 {[%clk 0:02:56.5]} 6. Ngf3 {[%clk 0:02:39.3]} 6... Nc6 {[%clk 0:02:53.7]}
7. Be2 {[%clk 0:02:38.6]} 7... cxd4 {[%clk 0:02:46.2]} 8. Nxd4 {[%clk
0:02:27.1]} 8... Nxd4 {[%clk 0:02:31.1]} 9. cxd4 {[%clk 0:02:29]} 9... Bd6
{[%clk 0:02:31.4]} 10. O-O {[%clk 0:02:28.5]} 10... Ne7 {[%clk 0:02:32.7]} 11.
Nf3 {[%clk 0:02:21]} 11... O-O {[%clk 0:02:34]} 12. Ne5 {[%clk 0:02:17.5]} 12...
f6 {[%clk 0:02:33.3]} 13. Ng4 {[%clk 0:02:08.2]} 13... Bf5 {[%clk 0:02:27]} 14.
Ne3 {[%clk 0:02:08]} 14... Be4 {[%clk 0:02:28.4]} 15. Qb3 {[%clk 0:01:50.8]}
15... Qc7 {[%clk 0:02:23.7]} 16. g3 {[%clk 0:01:41.8]} 16... Kh8 {[%clk
0:02:05.1]} 17. f3 {[%clk 0:01:41.4]} 17... Bg6 {[%clk 0:02:04.3]} 18. Nxd5
{[%clk 0:01:42.1]} 18... Nxd5 {[%clk 0:02:00.9]} 19. Qxd5 {[%clk 0:01:44]} 19...
Rfe8 {[%clk 0:01:48.1]} 20. Qc4 {[%clk 0:01:38.9]} 20... Bxg3 {[%clk 0:01:40.1]}
21. f4 {[%clk 0:01:39.3]} 21... Qe7 {[%clk 0:01:20.9]} 22. Bf3 {[%clk
0:01:33.3]} 22... Be1 {[%clk 0:01:19.4]} 23. Qd5 {[%clk 0:01:06.5]} 23... Bd3
{[%clk 0:01:02.2]} 24. Qxb7 {[%clk 0:01:06.4]} 24... Ra7 {[%clk 0:01:02.1]} 25.
Qxe7 {[%clk 0:01:01.9]} 25... Raxe7 {[%clk 0:01:04]} 26. Bc6 {[%clk 0:01:02.3]}
26... Rc8 {[%clk 0:01:02]} 27. d5 {[%clk 0:00:58.8]} 27... Bxf1 {[%clk
0:00:58.6]} 28. Kxf1 {[%clk 0:01:00.7]} 28... Bb4 {[%clk 0:00:59.1]} 29. a3
{[%clk 0:01:01.4]} 29... Re1+ {[%clk 0:00:50.3]} 30. Kf2 {[%clk 0:01:02]} 30...
Bd2 {[%clk 0:00:51.9]} 31. Bxd2 {[%clk 0:00:52.5]} 31... Rxa1 {[%clk 0:00:53.8]}
32. Ba5 {[%clk 0:00:35.3]} 32... Rb1 {[%clk 0:00:49.3]} 33. b4 {[%clk
0:00:32.3]} 33... Kg8 {[%clk 0:00:44.4]} 34. Ke3 {[%clk 0:00:23.4]} 34... Rb3+
{[%clk 0:00:43.9]} 35. Kd4 {[%clk 0:00:20.2]} 35... Rxa3 {[%clk 0:00:44.7]} 36.
Kc5 {[%clk 0:00:09.2]} 36... Kf7 {[%clk 0:00:36.7]} 37. Kd6 {[%clk 0:00:09]}
37... Rd3 {[%clk 0:00:25.3]} 38. Kd7 {[%clk 0:00:06.6]} 38... Re8 {[%clk
0:00:21.5]} 39. d6 {[%clk 0:00:02.8]} 39... Re7+ {[%clk 0:00:22.3]} 40. Kc8
{[%clk 0:00:02.6]} 40... Rxd6 {[%clk 0:00:23.5]} 41. Ba4 {[%clk 0:00:02.5]}
41... Rd3 {[%clk 0:00:17.6]} 0-1

[Event "*** Titled Tuesday 3|2 Blitz"]
[Site "Chess.com"]
[Date "2016.05.03"]
[Round "6"]
[White "Zazuliak"]
[Black "spectralsoul"]
[Result "0-1"]
[WhiteElo "2374"]
[BlackElo "2547"]
[TimeControl "180+2"]
[EndTime "12:16:04 PDT"]
[Termination "spectralsoul won by resignation"]

1. d4 {[%clk 0:02:59.8]} 1... Nf6 {[%clk 0:03:00.6]} 2. c4 {[%clk 0:02:58.5]}
2... e6 {[%clk 0:03:01.8]} 3. Nc3 {[%clk 0:02:59.1]} 3... Bb4 {[%clk 0:03:02.5]}
4. Qc2 {[%clk 0:02:56.8]} 4... c5 {[%clk 0:03:03.4]} 5. dxc5 {[%clk 0:02:57.7]}
5... Bxc5 {[%clk 0:03:05.3]} 6. Nf3 {[%clk 0:02:57.7]} 6... Qb6 {[%clk
0:03:06.6]} 7. e3 {[%clk 0:02:58.1]} 7... Qc7 {[%clk 0:03:07.9]} 8. Be2 {[%clk
0:02:54.9]} 8... b6 {[%clk 0:03:07.5]} 9. O-O {[%clk 0:02:55.4]} 9... a6 {[%clk
0:03:06.5]} 10. b3 {[%clk 0:02:56.4]} 10... Bb7 {[%clk 0:03:06.6]} 11. Bb2
{[%clk 0:02:57.1]} 11... O-O {[%clk 0:03:07.7]} 12. Rfd1 {[%clk 0:02:56.1]}
12... Be7 {[%clk 0:03:08.5]} 13. Rac1 {[%clk 0:02:56.5]} 13... d6 {[%clk
0:03:09.3]} 14. Ng5 {[%clk 0:02:40.4]} 14... h6 {[%clk 0:03:06.3]} 15. Nge4
{[%clk 0:02:40.9]} 15... Nbd7 {[%clk 0:03:07.8]} 16. Bf3 {[%clk 0:02:37.9]}
16... Ne8 {[%clk 0:03:02.5]} 17. Ne2 {[%clk 0:02:28.9]} 17... Ne5 {[%clk
0:02:57.7]} 18. Bxe5 {[%clk 0:02:26.7]} 18... dxe5 {[%clk 0:02:59.6]} 19. Nd2
{[%clk 0:02:23.7]} 19... Ba3 {[%clk 0:02:30.4]} 20. Bxb7 {[%clk 0:02:19.2]}
20... Qxb7 {[%clk 0:02:30.9]} 21. Rb1 {[%clk 0:02:20.2]} 21... Nf6 {[%clk
0:01:58.9]} 22. Qc3 {[%clk 0:02:10.3]} 22... Bd6 {[%clk 0:01:58.4]} 23. Ng3
{[%clk 0:02:02.6]} 23... Rfd8 {[%clk 0:01:55.1]} 24. Qc2 {[%clk 0:02:01.8]}
24... Bb4 {[%clk 0:01:45.3]} 25. Nde4 {[%clk 0:02:01.5]} 25... Ne8 {[%clk
0:01:41.8]} 26. Qb2 {[%clk 0:01:52.5]} 26... f5 {[%clk 0:01:38]} 27. Nc3 {[%clk
0:01:52.6]} 27... Qe7 {[%clk 0:01:34]} 28. Nce2 {[%clk 0:01:46.5]} 28... Qc5
{[%clk 0:01:18]} 29. Rbc1 {[%clk 0:01:39.7]} 29... Ba3 {[%clk 0:01:16.9]} 30.
Qc2 {[%clk 0:01:37.8]} 30... Bxc1 {[%clk 0:01:17]} 31. Rxc1 {[%clk 0:01:37.8]}
31... Nf6 {[%clk 0:01:17.4]} 32. Nc3 {[%clk 0:01:37.7]} 32... b5 {[%clk
0:01:12.3]} 33. Nce2 {[%clk 0:01:28.8]} 33... bxc4 {[%clk 0:01:09.6]} 34. bxc4
{[%clk 0:01:29.9]} 34... Rac8 {[%clk 0:01:06.7]} 35. h3 {[%clk 0:01:30.6]} 35...
h5 {[%clk 0:01:06.4]} 36. Qa4 {[%clk 0:01:22.7]} 36... h4 {[%clk 0:00:59.4]} 37.
Nf1 {[%clk 0:01:22]} 37... Rc6 {[%clk 0:00:54.6]} 38. Nh2 {[%clk 0:01:18.7]}
38... Rd2 {[%clk 0:00:49.5]} 39. Kf1 {[%clk 0:01:19.7]} 39... Rcd6 {[%clk
0:00:27]} 40. Nf3 {[%clk 0:01:18.9]} 40... Rb2 {[%clk 0:00:21.9]} 41. Nc3 {[%clk
0:00:53.5]} 41... Rb4 {[%clk 0:00:20.8]} 42. Qa3 {[%clk 0:00:46.8]} 42... Rxc4
{[%clk 0:00:20.6]} 43. Qb3 {[%clk 0:00:47.1]} 43... Rb6 {[%clk 0:00:20.3]} 44.
Qc2 {[%clk 0:00:44.5]} 44... Rc6 {[%clk 0:00:20.9]} 45. Qb3 {[%clk 0:00:42]}
45... Rxc3 {[%clk 0:00:20.7]} 46. Qb8+ {[%clk 0:00:39.5]} 46... Rc8 {[%clk
0:00:19.2]} 47. Rxc3 {[%clk 0:00:40.6]} 47... Qxc3 {[%clk 0:00:20.1]} 48. Qxe5
{[%clk 0:00:40.7]} 48... Qxe5 {[%clk 0:00:19.6]} 49. Nxe5 {[%clk 0:00:41.6]}
49... Rc1+ {[%clk 0:00:21.3]} 50. Ke2 {[%clk 0:00:42.3]} 50... Rc2+ {[%clk
0:00:23.2]} 51. Kf3 {[%clk 0:00:43.2]} 51... Ne4 {[%clk 0:00:24.2]} 52. Nd3
{[%clk 0:00:42.1]} 52... Rd2 {[%clk 0:00:25.7]} 0-1

[Event "*** Titled Tuesday 3|2 Blitz"]
[Site "Chess.com"]
[Date "2016.05.03"]
[Round "6"]
[White "Rickstereo"]
[Black "the_drake"]
[Result "1-0"]
[WhiteElo "2206"]
[BlackElo "2201"]
[TimeControl "180+2"]
[EndTime "12:16:04 PDT"]
[Termination "Rickstereo won by checkmate"]

1. c4 {[%clk 0:03:01.9]} 1... e5 {[%clk 0:02:57.3]} 2. Nc3 {[%clk 0:02:56.8]}
2... Nf6 {[%clk 0:02:56.1]} 3. Nf3 {[%clk 0:02:57.6]} 3... Nc6 {[%clk 0:02:55]}
4. d4 {[%clk 0:02:57.6]} 4... e4 {[%clk 0:02:48.1]} 5. Nd2 {[%clk 0:02:31.9]}
5... Bb4 {[%clk 0:02:36.5]} 6. e3 {[%clk 0:02:26.4]} 6... Bxc3 {[%clk
0:02:19.1]} 7. bxc3 {[%clk 0:02:26.6]} 7... d6 {[%clk 0:02:19.2]} 8. Be2 {[%clk
0:02:25.8]} 8... O-O {[%clk 0:02:14.3]} 9. O-O {[%clk 0:02:16.3]} 9... Bf5
{[%clk 0:02:13.8]} 10. Rb1 {[%clk 0:02:02.6]} 10... Rb8 {[%clk 0:02:04]} 11. Rb5
{[%clk 0:01:59.4]} 11... Bg6 {[%clk 0:01:50.7]} 12. Ba3 {[%clk 0:01:28.4]} 12...
Re8 {[%clk 0:01:48.6]} 13. c5 {[%clk 0:01:26.9]} 13... Nd5 {[%clk 0:01:21.7]}
14. Qc2 {[%clk 0:01:22.9]} 14... dxc5 {[%clk 0:01:17.5]} 15. Bxc5 {[%clk
0:01:14.6]} 15... b6 {[%clk 0:01:17.1]} 16. Ba3 {[%clk 0:01:12.3]} 16... a6
{[%clk 0:01:09.4]} 17. Rb2 {[%clk 0:01:09.8]} 17... Nf6 {[%clk 0:01:05.3]} 18.
c4 {[%clk 0:00:46.5]} 18... Nxd4 {[%clk 0:00:54.3]} 19. exd4 {[%clk 0:00:42.8]}
19... e3 {[%clk 0:00:54.7]} 20. Qc3 {[%clk 0:00:43.8]} 20... exd2 {[%clk
0:00:53.2]} 21. Qxd2 {[%clk 0:00:40.2]} 21... Ne4 {[%clk 0:00:52.1]} 22. Qe3
{[%clk 0:00:28.1]} 22... Qf6 {[%clk 0:00:43.4]} 23. Rd1 {[%clk 0:00:11.6]} 23...
Rbd8 {[%clk 0:00:40.1]} 24. Qf3 {[%clk 0:00:04.3]} 24... Qg5 {[%clk 0:00:34.8]}
25. g3 {[%clk 0:00:03.2]} 25... Nd6 {[%clk 0:00:32.1]} 26. Bxd6 {[%clk
0:00:02.2]} 26... Rxd6 {[%clk 0:00:32.3]} 27. Rbd2 {[%clk 0:00:03.4]} 27... Rf6
{[%clk 0:00:32.9]} 28. Qg2 {[%clk 0:00:04.3]} 28... Be4 {[%clk 0:00:29.9]} 29.
Qf1 {[%clk 0:00:04.8]} 29... Bb7 {[%clk 0:00:29.1]} 30. h4 {[%clk 0:00:05.8]}
30... Qa5 {[%clk 0:00:27.5]} 31. d5 {[%clk 0:00:06.9]} 31... h6 {[%clk
0:00:26.4]} 32. Bd3 {[%clk 0:00:08]} 32... Qc5 {[%clk 0:00:26.7]} 33. Bb1 {[%clk
0:00:08.6]} 33... g5 {[%clk 0:00:27.4]} 34. Qd3 {[%clk 0:00:09.9]} 34... Rg6
{[%clk 0:00:27.3]} 35. h5 {[%clk 0:00:11.3]} 35... Rg7 {[%clk 0:00:28.2]} 36.
Re2 {[%clk 0:00:12.7]} 36... Rxe2 {[%clk 0:00:26.7]} 37. Qxe2 {[%clk 0:00:14.6]}
37... Qf8 {[%clk 0:00:26.7]} 38. Re1 {[%clk 0:00:15.9]} 38... f6 {[%clk
0:00:27.5]} 39. Qe6+ {[%clk 0:00:16.8]} 39... Kh8 {[%clk 0:00:25.2]} 40. Bg6
{[%clk 0:00:16.9]} 40... Bc8 {[%clk 0:00:25.4]} 41. Qc6 {[%clk 0:00:17.7]} 41...
Bg4 {[%clk 0:00:25.1]} 42. Re8 {[%clk 0:00:17.8]} 42... Rg8 {[%clk 0:00:23.2]}
43. Rxf8 {[%clk 0:00:18.6]} 43... Rxf8 {[%clk 0:00:24.2]} 44. Qxc7 {[%clk
0:00:20.1]} 44... Bd7 {[%clk 0:00:20.7]} 45. Qxd7 {[%clk 0:00:20.9]} 45... Rd8
{[%clk 0:00:21.1]} 46. Qh7# {[%clk 0:00:20.7]} 1-0

[Event "*** Titled Tuesday 3|2 Blitz"]
[Site "Chess.com"]
[Date "2016.05.03"]
[Round "6"]
[White "VSERGUEI"]
[Black "Izoria123"]
[Result "0-1"]
[WhiteElo "2460"]
[BlackElo "2610"]
[TimeControl "180+2"]
[EndTime "12:16:12 PDT"]
[Termination "Izoria123 won on time"]

1. d4 {[%clk 0:02:55.7]} 1... Nf6 {[%clk 0:03:00.1]} 2. c4 {[%clk 0:02:56.5]}
2... g6 {[%clk 0:03:00.9]} 3. Nc3 {[%clk 0:02:52.4]} 3... d5 {[%clk 0:03:00.6]}
4. Nf3 {[%clk 0:02:52.4]} 4... Bg7 {[%clk 0:03:00.9]} 5. Bg5 {[%clk 0:02:52]}
5... Ne4 {[%clk 0:03:00.8]} 6. cxd5 {[%clk 0:02:52.1]} 6... Nxg5 {[%clk
0:03:01]} 7. Nxg5 {[%clk 0:02:50.4]} 7... e6 {[%clk 0:03:02.4]} 8. Qd2 {[%clk
0:02:51.5]} 8... h6 {[%clk 0:03:02]} 9. Nf3 {[%clk 0:02:51.5]} 9... exd5 {[%clk
0:03:01.8]} 10. b4 {[%clk 0:02:52]} 10... O-O {[%clk 0:03:01.2]} 11. e3 {[%clk
0:02:52.6]} 11... Be6 {[%clk 0:02:59.1]} 12. Be2 {[%clk 0:02:51.9]} 12... Nd7
{[%clk 0:02:56.8]} 13. O-O {[%clk 0:02:52.1]} 13... c6 {[%clk 0:02:56.2]} 14. b5
{[%clk 0:02:51.8]} 14... c5 {[%clk 0:02:55.1]} 15. dxc5 {[%clk 0:02:52.1]} 15...
Nxc5 {[%clk 0:02:54.8]} 16. Nd4 {[%clk 0:02:53]} 16... Qa5 {[%clk 0:02:45.4]}
17. Rfd1 {[%clk 0:02:49.6]} 17... Rfd8 {[%clk 0:02:42.3]} 18. Rac1 {[%clk
0:02:45.4]} 18... Rac8 {[%clk 0:02:41.6]} 19. h3 {[%clk 0:02:32.5]} 19... h5
{[%clk 0:02:17.8]} 20. Bf3 {[%clk 0:02:17.4]} 20... Nd7 {[%clk 0:02:07.9]} 21.
Be2 {[%clk 0:01:01.3]} 21... Ne5 {[%clk 0:02:03.2]} 22. Bf1 {[%clk 0:00:43.6]}
22... Rc7 {[%clk 0:01:55.9]} 23. Nce2 {[%clk 0:00:20.6]} 23... Qxd2 {[%clk
0:01:49.6]} 24. Rxd2 {[%clk 0:00:21.5]} 24... Rxc1 {[%clk 0:01:48.1]} 25. Nxc1
{[%clk 0:00:21.9]} 25... Rc8 {[%clk 0:01:49.7]} 26. Ncb3 {[%clk 0:00:22.5]}
26... Rc3 {[%clk 0:01:47.9]} 27. Rd1 {[%clk 0:00:18.1]} 27... Nc4 {[%clk
0:01:37.1]} 28. Nxe6 {[%clk 0:00:16.6]} 28... fxe6 {[%clk 0:01:37.4]} 29. e4
{[%clk 0:00:17.9]} 29... dxe4 {[%clk 0:01:12.6]} 30. Bxc4 {[%clk 0:00:17.3]}
30... Rxc4 {[%clk 0:01:11.8]} 31. Na5 {[%clk 0:00:18.6]} 31... Ra4 {[%clk
0:01:08.7]} 32. Nxb7 {[%clk 0:00:19.5]} 32... Rxa2 {[%clk 0:01:08.5]} 33. Nc5
{[%clk 0:00:20.6]} 33... e3 {[%clk 0:01:08.1]} 34. fxe3 {[%clk 0:00:21]} 34...
Bh6 {[%clk 0:01:08.8]} 35. Rd8+ {[%clk 0:00:20]} 35... Kf7 {[%clk 0:01:09.2]}
36. Rd3 {[%clk 0:00:18.6]} 36... Rc2 {[%clk 0:01:07.5]} 37. Ne4 {[%clk
0:00:19.5]} 37... Ra2 {[%clk 0:01:02.8]} 38. Kf1 {[%clk 0:00:19.2]} 38... Ke7
{[%clk 0:00:59.6]} 39. Rc3 {[%clk 0:00:20.4]} 39... Ra5 {[%clk 0:00:52.8]} 40.
Rc7+ {[%clk 0:00:20.7]} 40... Kd8 {[%clk 0:00:52.4]} 41. Rb7 {[%clk 0:00:21.1]}
41... Bxe3 {[%clk 0:00:51.7]} 42. Ke2 {[%clk 0:00:22.3]} 42... Bb6 {[%clk
0:00:51.4]} 43. Ng5 {[%clk 0:00:22.7]} 43... Rxb5 {[%clk 0:00:51]} 44. Nxe6+
{[%clk 0:00:23.3]} 44... Kc8 {[%clk 0:00:50.9]} 45. Re7 {[%clk 0:00:24.3]} 45...
Re5+ {[%clk 0:00:51]} 46. Kf3 {[%clk 0:00:19.7]} 46... Bc5 {[%clk 0:00:48.6]}
47. Kf4 {[%clk 0:00:20.6]} 47... Rf5+ {[%clk 0:00:48.3]} 0-1

[Event "*** Titled Tuesday 3|2 Blitz"]
[Site "Chess.com"]
[Date "2016.05.03"]
[Round "6"]
[White "PowerThinking2650"]
[Black "Alexander_Donchenko"]
[Result "0-1"]
[WhiteElo "2184"]
[BlackElo "2646"]
[TimeControl "180+2"]
[EndTime "12:16:14 PDT"]
[Termination "Alexander_Donchenko won by resignation"]

1. e4 {[%clk 0:03:01.9]} 1... c6 {[%clk 0:03:01.2]} 2. d4 {[%clk 0:03:02.1]}
2... d5 {[%clk 0:03:03.1]} 3. Nc3 {[%clk 0:03:03.7]} 3... dxe4 {[%clk
0:03:04.6]} 4. Nxe4 {[%clk 0:03:04.7]} 4... Bf5 {[%clk 0:03:06.2]} 5. Ng3 {[%clk
0:03:05.5]} 5... Bg6 {[%clk 0:03:07.7]} 6. Nf3 {[%clk 0:03:06]} 6... Nd7 {[%clk
0:03:08.4]} 7. h4 {[%clk 0:03:06.9]} 7... h6 {[%clk 0:03:09.9]} 8. h5 {[%clk
0:03:08.1]} 8... Bh7 {[%clk 0:03:11.5]} 9. Bd3 {[%clk 0:03:08.3]} 9... Bxd3
{[%clk 0:03:12.9]} 10. Qxd3 {[%clk 0:03:09.8]} 10... e6 {[%clk 0:03:14.8]} 11.
Bd2 {[%clk 0:03:10.5]} 11... Ngf6 {[%clk 0:03:16.1]} 12. O-O-O {[%clk
0:03:11.6]} 12... Be7 {[%clk 0:03:17.8]} 13. Kb1 {[%clk 0:03:01.6]} 13... O-O
{[%clk 0:03:18.3]} 14. Qe2 {[%clk 0:03:02.3]} 14... Qb6 {[%clk 0:03:14.9]} 15.
Ne5 {[%clk 0:02:44.5]} 15... Rad8 {[%clk 0:03:03.5]} 16. f4 {[%clk 0:02:20.4]}
16... c5 {[%clk 0:03:03.2]} 17. dxc5 {[%clk 0:01:36.5]} 17... Nxc5 {[%clk
0:03:03.6]} 18. Bc1 {[%clk 0:01:34.3]} 18... Nd5 {[%clk 0:02:56.3]} 19. Ka1
{[%clk 0:01:33.6]} 19... Na4 {[%clk 0:02:50.1]} 20. c4 {[%clk 0:01:27]} 20...
Nb4 {[%clk 0:02:29.8]} 21. Ne4 {[%clk 0:01:25.7]} 21... Qa6 {[%clk 0:02:13.9]}
22. a3 {[%clk 0:01:23.5]} 22... Nc6 {[%clk 0:02:12.1]} 23. Nxc6 {[%clk
0:01:17.7]} 23... Qxc6 {[%clk 0:02:14]} 24. g4 {[%clk 0:01:16.8]} 24... f5
{[%clk 0:01:50.5]} 25. gxf5 {[%clk 0:01:13.2]} 25... exf5 {[%clk 0:01:50.4]} 26.
Ng3 {[%clk 0:01:06.8]} 26... Rde8 {[%clk 0:01:29.2]} 27. Qc2 {[%clk 0:01:04.8]}
27... Bf6 {[%clk 0:01:15.6]} 28. Nxf5 {[%clk 0:01:00.5]} 28... Nc5 {[%clk
0:01:03.9]} 29. Rd5 {[%clk 0:01:00]} 29... Ne4 {[%clk 0:00:56.5]} 30. Rg1 {[%clk
0:00:57.5]} 30... Kh8 {[%clk 0:00:55.8]} 31. Qg2 {[%clk 0:00:44.8]} 31... Qxc4
{[%clk 0:00:40.2]} 32. Rd7 {[%clk 0:00:43.8]} 32... Qe6 {[%clk 0:00:19.2]} 33.
Rxg7 {[%clk 0:00:13.3]} 33... Qxf5 {[%clk 0:00:20.4]} 34. Rg6 {[%clk 0:00:14.4]}
34... Qxh5 {[%clk 0:00:06.2]} 35. Rh1 {[%clk 0:00:14.3]} 35... Bh4 {[%clk
0:00:05.2]} 36. f5 {[%clk 0:00:14.6]} 36... Ng5 {[%clk 0:00:05.6]} 37. Bxg5
{[%clk 0:00:14.9]} 37... hxg5 {[%clk 0:00:05.5]} 38. Qxg5 {[%clk 0:00:13.6]}
38... Qxg5 {[%clk 0:00:05.5]} 39. Rxg5 {[%clk 0:00:14.7]} 39... Re1+ {[%clk
0:00:07.2]} 40. Rxe1 {[%clk 0:00:11.4]} 40... Bxe1 {[%clk 0:00:09.1]} 41. Ka2
{[%clk 0:00:08.6]} 41... Bd2 {[%clk 0:00:10.4]} 42. Rg2 {[%clk 0:00:08]} 42...
Be3 {[%clk 0:00:10.5]} 43. Re2 {[%clk 0:00:08.8]} 43... Bc5 {[%clk 0:00:11]} 44.
Re5 {[%clk 0:00:09.6]} 44... Bd6 {[%clk 0:00:12.2]} 45. Rd5 {[%clk 0:00:10.3]}
45... Rf6 {[%clk 0:00:12.8]} 0-1

[Event "*** Titled Tuesday 3|2 Blitz"]
[Site "Chess.com"]
[Date "2016.05.03"]
[Round "6"]
[White "AndrewMcStone"]
[Black "chesstatour"]
[Result "1-0"]
[WhiteElo "1991"]
[BlackElo "2020"]
[TimeControl "180+2"]
[EndTime "12:16:37 PDT"]
[Termination "AndrewMcStone won by resignation"]

1. d4 {[%clk 0:03:01.9]} 1... Nf6 {[%clk 0:02:58.4]} 2. Bg5 {[%clk 0:03:01.5]}
2... Ne4 {[%clk 0:02:50.6]} 3. Bf4 {[%clk 0:03:02.2]} 3... d5 {[%clk 0:02:48.2]}
4. e3 {[%clk 0:03:03]} 4... Bf5 {[%clk 0:02:39.7]} 5. Bd3 {[%clk 0:02:51.6]}
5... e6 {[%clk 0:02:32.6]} 6. Nf3 {[%clk 0:02:45.8]} 6... Bd6 {[%clk 0:02:27.3]}
7. Bxd6 {[%clk 0:02:38.3]} 7... Qxd6 {[%clk 0:02:29.2]} 8. O-O {[%clk
0:02:23.3]} 8... Nd7 {[%clk 0:02:19.4]} 9. c4 {[%clk 0:02:23.9]} 9... c6 {[%clk
0:02:16.5]} 10. Nc3 {[%clk 0:02:23]} 10... O-O {[%clk 0:02:15.6]} 11. Rc1 {[%clk
0:02:11.2]} 11... Rae8 {[%clk 0:01:54.2]} 12. Qc2 {[%clk 0:02:10.3]} 12... Ndf6
{[%clk 0:01:24.3]} 13. Ne5 {[%clk 0:02:07.2]} 13... Nxc3 {[%clk 0:01:19.2]} 14.
Bxf5 {[%clk 0:01:28.9]} 14... exf5 {[%clk 0:01:11]} 15. bxc3 {[%clk 0:01:21.5]}
15... Ng4 {[%clk 0:01:00.3]} 16. Nxg4 {[%clk 0:00:38]} 16... fxg4 {[%clk
0:01:02.2]} 17. Qf5 {[%clk 0:00:34.1]} 17... Qg6 {[%clk 0:00:44.8]} 18. Qxg6
{[%clk 0:00:31.7]} 18... hxg6 {[%clk 0:00:46.4]} 19. c5 {[%clk 0:00:26.5]} 19...
f5 {[%clk 0:00:42.1]} 20. Rb1 {[%clk 0:00:27.1]} 20... Re7 {[%clk 0:00:41.2]}
21. Rb3 {[%clk 0:00:16.9]} 21... g5 {[%clk 0:00:38]} 22. Rfb1 {[%clk 0:00:16.4]}
22... Rff7 {[%clk 0:00:39.4]} 23. Kf1 {[%clk 0:00:12.8]} 23... f4 {[%clk
0:00:37.5]} 24. Ke2 {[%clk 0:00:12.4]} 24... Kh7 {[%clk 0:00:22.5]} 25. Kd3
{[%clk 0:00:11.4]} 25... Kg6 {[%clk 0:00:21.1]} 26. a4 {[%clk 0:00:11.3]} 26...
Kf5 {[%clk 0:00:17.3]} 27. a5 {[%clk 0:00:12.3]} 27... g3 {[%clk 0:00:17.9]} 28.
hxg3 {[%clk 0:00:12.7]} 28... fxg3 {[%clk 0:00:18.2]} 29. f3 {[%clk 0:00:14.2]}
29... g4 {[%clk 0:00:17.7]} 30. e4+ {[%clk 0:00:14.8]} 30... dxe4+ {[%clk
0:00:14.5]} 31. fxe4+ {[%clk 0:00:15.7]} 31... Kg5 {[%clk 0:00:08.3]} 32. d5
{[%clk 0:00:11.5]} 32... Rd7 {[%clk 0:00:07.7]} 33. d6 {[%clk 0:00:11]} 33...
Kf6 {[%clk 0:00:06.6]} 34. Kd4 {[%clk 0:00:11.8]} 34... Ke6 {[%clk 0:00:07.5]}
35. R3b2 {[%clk 0:00:10.7]} 35... Rf2 {[%clk 0:00:07.7]} 36. Rxf2 {[%clk
0:00:11.2]} 36... gxf2 {[%clk 0:00:09.6]} 37. g3 {[%clk 0:00:12.4]} 37... Rf7
{[%clk 0:00:09.8]} 38. Rf1 {[%clk 0:00:13.2]} 38... Rf3 {[%clk 0:00:10.9]} 39.
c4 {[%clk 0:00:11.5]} 39... a6 {[%clk 0:00:12.1]} 40. e5 {[%clk 0:00:10.2]}
40... Rxg3 {[%clk 0:00:11.3]} 41. Rxf2 {[%clk 0:00:10.6]} 41... Rf3 {[%clk
0:00:12.9]} 42. Rg2 {[%clk 0:00:11.1]} 42... Rf4+ {[%clk 0:00:14.1]} 43. Kd3
{[%clk 0:00:11.5]} 43... g5 {[%clk 0:00:12.4]} 44. Rh2 {[%clk 0:00:11.7]} 44...
g3 {[%clk 0:00:10]} 45. Rh7 {[%clk 0:00:11.8]} 45... Kxe5 {[%clk 0:00:08]} 46.
Re7+ {[%clk 0:00:09.4]} 46... Kf6 {[%clk 0:00:09.1]} 47. Re1 {[%clk 0:00:08.2]}
47... g2 {[%clk 0:00:08.3]} 48. d7 {[%clk 0:00:08.9]} 48... g1=Q {[%clk
0:00:09.3]} 49. d8=Q+ {[%clk 0:00:10]} 49... Kg6 {[%clk 0:00:10.4]} 50. Rxg1
{[%clk 0:00:11.1]} 50... Rd4+ {[%clk 0:00:07.8]} 51. Qxd4 {[%clk 0:00:10.4]} 1-0